[Event "Titled Tuesday Blitz May 16 Early 2023"]
[White "Thecourseoisildur"]
[Black "Boyer, Mahel"]
[BlackFideId "45102422"]
[WhiteElo "2561"]
[BlackElo "2439"]
[Result "0-1"]
[Round "06"]
[TimeControl "180+2"]
[Date "2023.05.16"]
[WhiteClock "0:00:00"]
[BlackClock "0:00:25"]

1. e4 {[%clk 0:03:00]}  Nc6 {[%clk 0:02:53]} 2. Nf3 {[%clk 0:03:00]}  d5 {[%clk 0:02:50]} 3. exd5 {[%clk 0:03:01]}  Qxd5 {[%clk 0:02:50]} 4. Nc3 {[%clk 0:03:02]}  Qh5 {[%clk 0:02:51]} 5. d4 {[%clk 0:02:55]}  Bg4 {[%clk 0:02:50]} 6. Be2 {[%clk 0:02:54]}  O-O-O {[%clk 0:02:49]} 7. h3 {[%clk 0:02:53]}  Nf6 {[%clk 0:02:44]} 8. O-O {[%clk 0:02:51]}  Nxd4 {[%clk 0:02:43]} 9. Nxd4 {[%clk 0:02:44]}  Bxe2 {[%clk 0:02:42]} 10. Ncxe2 {[%clk 0:02:38]}  e5 {[%clk 0:02:41]} 11. Qd3 {[%clk 0:02:03]}  exd4 {[%clk 0:02:25]} 12. Nxd4 {[%clk 0:02:04]}  Bc5 {[%clk 0:01:51]} 13. Qf5+ {[%clk 0:02:03]}  Qxf5 {[%clk 0:01:50]} 14. Nxf5 {[%clk 0:02:04]}  Rd5 {[%clk 0:01:51]} 15. Ne3 {[%clk 0:02:00]}  Rd7 {[%clk 0:01:48]} 16. b3 {[%clk 0:01:56]}  Bd4 {[%clk 0:01:22]} 17. Rb1 {[%clk 0:01:55]}  Ne4 {[%clk 0:01:23]} 18. c4 {[%clk 0:01:03]}  Re8 {[%clk 0:01:14]} 19. b4 {[%clk 0:00:43]}  f5 {[%clk 0:00:43]} 20. Nxf5 {[%clk 0:00:24]}  Bxf2+ {[%clk 0:00:39]} 21. Rxf2 {[%clk 0:00:21]}  Nxf2 {[%clk 0:00:38]} 22. Kxf2 {[%clk 0:00:21]}  Rf7 {[%clk 0:00:38]} 23. g4 {[%clk 0:00:09]}  g6 {[%clk 0:00:38]} 24. Bb2 {[%clk 0:00:07]}  gxf5 {[%clk 0:00:38]} 25. g5 {[%clk 0:00:08]}  Rfe7 {[%clk 0:00:35]} 26. Kf3 {[%clk 0:00:05]}  Re3+ {[%clk 0:00:29]} 27. Kf4 {[%clk 0:00:05]}  Re2 {[%clk 0:00:27]} 28. Kxf5 {[%clk 0:00:04]}  Rf2+ {[%clk 0:00:27]} 29. Kg4 {[%clk 0:00:04]}  Re4+ {[%clk 0:00:28]} 30. Kg3 {[%clk 0:00:04]}  Rf5 {[%clk 0:00:28]} 31. Bf6 {[%clk 0:00:04]}  Rxc4 {[%clk 0:00:28]} 32. Rd1 {[%clk 0:00:03]}  b6 {[%clk 0:00:27]} 33. Rd8+ {[%clk 0:00:02]}  Kb7 {[%clk 0:00:28]} 34. Rd7 {[%clk 0:00:02]}  h6 {[%clk 0:00:27]} 35. h4 {[%clk 0:00:02]}  h5 {[%clk 0:00:26]} 36. Bd4 {[%clk 0:00:00]}  Kc8 {[%clk 0:00:25]} 0-1


[Site "https://www.chess.com"]

[Event "Titled Tuesday Blitz May 16 Early 2023"]
[White "Moksh Amit Doshi"]
[Black "Kilic, Eray"]
[WhiteFideId "25064967"]
[BlackFideId "44517173"]
[WhiteElo "2297"]
[BlackElo "2328"]
[Result "1-0"]
[Round "06"]
[TimeControl "180+2"]
[Date "2023.05.16"]
[WhiteClock "0:00:11"]
[BlackClock "0:00:02"]

1. d4 {[%clk 0:02:54]}  Nf6 {[%clk 0:03:00]} 2. c4 {[%clk 0:02:51]}  g6 {[%clk 0:03:00]} 3. Nc3 {[%clk 0:02:46]}  d5 {[%clk 0:02:58]} 4. cxd5 {[%clk 0:02:37]}  Nxd5 {[%clk 0:02:59]} 5. e4 {[%clk 0:02:37]}  Nxc3 {[%clk 0:02:59]} 6. bxc3 {[%clk 0:02:38]}  Bg7 {[%clk 0:03:00]} 7. Nf3 {[%clk 0:02:39]}  c5 {[%clk 0:03:00]} 8. Rb1 {[%clk 0:02:39]}  Nc6 {[%clk 0:02:56]} 9. d5 {[%clk 0:02:37]}  Ne5 {[%clk 0:02:56]} 10. Bb5+ {[%clk 0:02:13]}  Bd7 {[%clk 0:02:55]} 11. O-O {[%clk 0:02:12]}  Bxb5 {[%clk 0:02:40]} 12. Rxb5 {[%clk 0:02:11]}  b6 {[%clk 0:02:41]} 13. c4 {[%clk 0:02:01]}  O-O {[%clk 0:02:36]} 14. Nxe5 {[%clk 0:01:58]}  Bxe5 {[%clk 0:02:37]} 15. f4 {[%clk 0:01:57]}  Bd4+ {[%clk 0:02:37]} 16. Kh1 {[%clk 0:01:57]}  e6 {[%clk 0:02:36]} 17. Bb2 {[%clk 0:01:55]}  Bxb2 {[%clk 0:02:30]} 18. Rxb2 {[%clk 0:01:56]}  exd5 {[%clk 0:02:28]} 19. cxd5 {[%clk 0:01:56]}  Re8 {[%clk 0:02:25]} 20. e5 {[%clk 0:01:55]}  Qh4 {[%clk 0:02:21]} 21. d6 {[%clk 0:01:53]}  Rad8 {[%clk 0:02:20]} 22. Qd5 {[%clk 0:01:53]}  Re6 {[%clk 0:02:15]} 23. a4 {[%clk 0:01:48]}  Qh5 {[%clk 0:01:54]} 24. Qb7 {[%clk 0:01:37]}  Qf5 {[%clk 0:01:36]} 25. Rbb1 {[%clk 0:01:19]}  Ree8 {[%clk 0:00:50]} 26. Qxa7 {[%clk 0:01:17]}  Rb8 {[%clk 0:00:46]} 27. Rxb6 {[%clk 0:00:35]}  Ra8 {[%clk 0:00:46]} 28. Qb7 {[%clk 0:00:31]}  Rxa4 {[%clk 0:00:44]} 29. Qc6 {[%clk 0:00:24]}  Rea8 {[%clk 0:00:38]} 30. d7 {[%clk 0:00:20]}  Qxf4 {[%clk 0:00:32]} 31. Rbb1 {[%clk 0:00:20]}  Qg5 {[%clk 0:00:21]} 32. e6 {[%clk 0:00:19]}  f5 {[%clk 0:00:20]} 33. Rfd1 {[%clk 0:00:13]}  Ra2 {[%clk 0:00:15]} 34. e7 {[%clk 0:00:08]}  Qxe7 {[%clk 0:00:15]} 35. Qd5+ {[%clk 0:00:08]}  Kg7 {[%clk 0:00:11]} 36. d8=Q {[%clk 0:00:09]}  Rxd8 {[%clk 0:00:12]} 37. Qxd8 {[%clk 0:00:10]}  Qxd8 {[%clk 0:00:11]} 38. Rxd8 {[%clk 0:00:11]}  Rc2 {[%clk 0:00:11]} 39. Rc8 {[%clk 0:00:11]}  Kf6 {[%clk 0:00:11]} 40. g3 {[%clk 0:00:10]}  Kg5 {[%clk 0:00:12]} 41. Rb7 {[%clk 0:00:10]}  h5 {[%clk 0:00:11]} 42. Rbc7 {[%clk 0:00:10]}  Kg4 {[%clk 0:00:10]} 43. Rxc5 {[%clk 0:00:10]}  Ra2 {[%clk 0:00:10]} 44. Rc4+ {[%clk 0:00:10]}  Kg5 {[%clk 0:00:10]} 45. Rc2 {[%clk 0:00:10]}  Ra4 {[%clk 0:00:09]} 46. Kg2 {[%clk 0:00:11]}  h4 {[%clk 0:00:02]} 47. R8c4 {[%clk 0:00:11]} 1-0


[Site "https://www.chess.com"]

[Event "Titled Tuesday Blitz May 16 Early 2023"]
[White "Gontcharov, Vladislav"]
[Black "Zemlyanskii, Ivan"]
[WhiteFideId "4123492"]
[BlackFideId "24249971"]
[WhiteElo "2420"]
[BlackElo "2421"]
[Result "1-0"]
[Round "06"]
[TimeControl "180+2"]
[Date "2023.05.16"]
[WhiteClock "0:00:05"]
[BlackClock "0:00:00"]

1. d4 {[%clk 0:03:00]}  d5 {[%clk 0:02:59]} 2. c4 {[%clk 0:02:59]}  c6 {[%clk 0:03:00]} 3. Nf3 {[%clk 0:02:58]}  Nf6 {[%clk 0:03:00]} 4. Nc3 {[%clk 0:02:56]}  dxc4 {[%clk 0:02:59]} 5. a4 {[%clk 0:02:55]}  Bf5 {[%clk 0:02:57]} 6. e3 {[%clk 0:02:54]}  e6 {[%clk 0:02:57]} 7. a5 {[%clk 0:02:54]}  Bb4 {[%clk 0:02:27]} 8. Qa4 {[%clk 0:02:53]}  Qe7 {[%clk 0:02:25]} 9. Bxc4 {[%clk 0:02:52]}  O-O {[%clk 0:02:25]} 10. O-O {[%clk 0:02:52]}  Nbd7 {[%clk 0:02:20]} 11. Bd2 {[%clk 0:02:40]}  b5 {[%clk 0:02:02]} 12. axb6 {[%clk 0:02:38]}  Nxb6 {[%clk 0:02:02]} 13. Qb3 {[%clk 0:02:37]}  Nxc4 {[%clk 0:01:51]} 14. Qxc4 {[%clk 0:02:37]}  c5 {[%clk 0:01:46]} 15. Ra4 {[%clk 0:02:11]}  Rfc8 {[%clk 0:01:28]} 16. Rfa1 {[%clk 0:02:04]}  Nd7 {[%clk 0:01:03]} 17. Qe2 {[%clk 0:01:51]}  Nb6 {[%clk 0:00:55]} 18. Ra6 {[%clk 0:01:42]}  c4 {[%clk 0:00:38]} 19. e4 {[%clk 0:01:38]}  Bg4 {[%clk 0:00:34]} 20. h3 {[%clk 0:01:38]}  Bh5 {[%clk 0:00:32]} 21. g4 {[%clk 0:01:38]}  Bg6 {[%clk 0:00:31]} 22. Ne5 {[%clk 0:01:39]}  Qb7 {[%clk 0:00:29]} 23. f3 {[%clk 0:01:35]}  f6 {[%clk 0:00:19]} 24. Nxg6 {[%clk 0:01:33]}  hxg6 {[%clk 0:00:20]} 25. Be3 {[%clk 0:01:33]}  Rd8 {[%clk 0:00:17]} 26. Kf2 {[%clk 0:01:26]}  Kh7 {[%clk 0:00:17]} 27. h4 {[%clk 0:01:26]}  Qc7 {[%clk 0:00:13]} 28. Kg2 {[%clk 0:01:23]}  f5 {[%clk 0:00:10]} 29. h5 {[%clk 0:01:13]}  fxg4 {[%clk 0:00:07]} 30. hxg6+ {[%clk 0:01:13]}  Kxg6 {[%clk 0:00:07]} 31. f4 {[%clk 0:01:09]}  Qb7 {[%clk 0:00:08]} 32. Qxg4+ {[%clk 0:01:07]}  Kf7 {[%clk 0:00:08]} 33. Kf3 {[%clk 0:01:02]}  Rd7 {[%clk 0:00:05]} 34. R6a2 {[%clk 0:00:49]}  Re7 {[%clk 0:00:03]} 35. Rg1 {[%clk 0:00:45]}  Kg8 {[%clk 0:00:04]} 36. Rg2 {[%clk 0:00:40]}  Rf8 {[%clk 0:00:04]} 37. Ra1 {[%clk 0:00:39]}  e5 {[%clk 0:00:00]} 38. dxe5 {[%clk 0:00:38]}  Rxe5 {[%clk 0:00:01]} 39. Bd4 {[%clk 0:00:23]}  Re7 {[%clk 0:00:02]} 40. Re1 {[%clk 0:00:21]}  Nd7 {[%clk 0:00:02]} 41. Qg6 {[%clk 0:00:18]}  Nf6 {[%clk 0:00:01]} 42. Bxf6 {[%clk 0:00:17]}  Ref7 {[%clk 0:00:01]} 43. Be5 {[%clk 0:00:15]}  Bxc3 {[%clk 0:00:01]} 44. bxc3 {[%clk 0:00:14]}  Qd7 {[%clk 0:00:00]} 45. Qd6 {[%clk 0:00:05]} 1-0


[Site "https://www.chess.com"]

[Event "Titled Tuesday Blitz May 16 Early 2023"]
[White "Rozman, Levy"]
[Black "Dixit, Nikhil"]
[WhiteFideId "2039877"]
[BlackFideId "5059534"]
[WhiteElo "2376"]
[BlackElo "2207"]
[Result "0-1"]
[Round "06"]
[TimeControl "180+2"]
[Date "2023.05.16"]
[WhiteClock "0:00:02"]
[BlackClock "0:00:21"]

1. e4 {[%clk 0:03:00]}  c5 {[%clk 0:02:50]} 2. Nc3 {[%clk 0:03:00]}  Nc6 {[%clk 0:02:47]} 3. Bb5 {[%clk 0:02:57]}  e5 {[%clk 0:02:43]} 4. d3 {[%clk 0:02:56]}  d6 {[%clk 0:02:31]} 5. f4 {[%clk 0:02:55]}  Bd7 {[%clk 0:02:24]} 6. Bxc6 {[%clk 0:02:52]}  Bxc6 {[%clk 0:02:24]} 7. Nf3 {[%clk 0:02:52]}  f6 {[%clk 0:02:15]} 8. O-O {[%clk 0:02:50]}  Ne7 {[%clk 0:02:13]} 9. Be3 {[%clk 0:02:46]}  Ng6 {[%clk 0:02:10]} 10. Nd2 {[%clk 0:02:38]}  Qd7 {[%clk 0:01:56]} 11. Qh5 {[%clk 0:02:35]}  O-O-O {[%clk 0:01:53]} 12. a3 {[%clk 0:02:30]}  exf4 {[%clk 0:01:45]} 13. Bxf4 {[%clk 0:02:29]}  Nxf4 {[%clk 0:01:46]} 14. Rxf4 {[%clk 0:02:29]}  g6 {[%clk 0:01:46]} 15. Qe2 {[%clk 0:02:24]}  Bg7 {[%clk 0:01:46]} 16. Nc4 {[%clk 0:02:16]}  Rhe8 {[%clk 0:01:43]} 17. Qf3 {[%clk 0:02:03]}  f5 {[%clk 0:01:41]} 18. Nd5 {[%clk 0:02:03]}  Bxd5 {[%clk 0:01:38]} 19. exd5 {[%clk 0:02:03]}  b5 {[%clk 0:01:28]} 20. Na5 {[%clk 0:02:03]}  Bxb2 {[%clk 0:01:28]} 21. Rb1 {[%clk 0:02:01]}  Bd4+ {[%clk 0:01:27]} 22. Rxd4 {[%clk 0:01:48]}  cxd4 {[%clk 0:01:28]} 23. Nc6 {[%clk 0:01:45]}  a6 {[%clk 0:01:17]} 24. Qf4 {[%clk 0:01:42]}  Qg7 {[%clk 0:01:11]} 25. a4 {[%clk 0:01:36]}  Re3 {[%clk 0:01:00]} 26. axb5 {[%clk 0:01:30]}  axb5 {[%clk 0:00:50]} 27. Rxb5 {[%clk 0:01:27]}  Rde8 {[%clk 0:00:45]} 28. Rb8+ {[%clk 0:00:43]}  Kc7 {[%clk 0:00:44]} 29. Rxe8 {[%clk 0:00:41]}  Rxe8 {[%clk 0:00:45]} 30. Qd2 {[%clk 0:00:38]}  Ra8 {[%clk 0:00:44]} 31. Qb4 {[%clk 0:00:18]}  Qf6 {[%clk 0:00:32]} 32. Nxd4 {[%clk 0:00:12]}  Ra1+ {[%clk 0:00:31]} 33. Kf2 {[%clk 0:00:12]}  Qh4+ {[%clk 0:00:31]} 34. Ke2 {[%clk 0:00:11]}  Qg4+ {[%clk 0:00:27]} 35. Kf2 {[%clk 0:00:02]}  Qf4+ {[%clk 0:00:24]} 36. Ke2 {[%clk 0:00:02]}  Qf1+ {[%clk 0:00:18]} 37. Ke3 {[%clk 0:00:03]}  f4+ {[%clk 0:00:19]} 38. Ke4 {[%clk 0:00:02]}  Re1+ {[%clk 0:00:19]} 39. Qxe1 {[%clk 0:00:01]}  Qxe1+ {[%clk 0:00:19]} 40. Kxf4 {[%clk 0:00:01]}  Qf2+ {[%clk 0:00:20]} 41. Nf3 {[%clk 0:00:01]}  Qxg2 {[%clk 0:00:20]} 42. c4 {[%clk 0:00:01]}  h6 {[%clk 0:00:20]} 43. Ke3 {[%clk 0:00:02]}  g5 {[%clk 0:00:20]} 44. h4 {[%clk 0:00:02]}  g4 {[%clk 0:00:20]} 45. Ne1 {[%clk 0:00:03]}  Qg1+ {[%clk 0:00:20]} 46. Ke2 {[%clk 0:00:03]}  g3 {[%clk 0:00:21]} 47. Nf3 {[%clk 0:00:02]}  Qf2+ {[%clk 0:00:21]} 0-1


[Site "https://www.chess.com"]

[Event "Titled Tuesday Blitz May 16 Early 2023"]
[White "Weetik, Vjacheslav"]
[Black "Shevtchenko, Olesya"]
[WhiteFideId "4153472"]
[BlackFideId "24131890"]
[WhiteElo "2469"]
[BlackElo "2003"]
[Result "0-1"]
[Round "06"]
[TimeControl "180+2"]
[Date "2023.05.16"]
[WhiteClock "0:00:11"]
[BlackClock "0:00:40"]

1. d4 {[%clk 0:02:54]}  Nf6 {[%clk 0:02:59]} 2. c4 {[%clk 0:02:53]}  e6 {[%clk 0:03:00]} 3. g3 {[%clk 0:02:53]}  d5 {[%clk 0:03:00]} 4. Nf3 {[%clk 0:02:54]}  Bb4+ {[%clk 0:03:01]} 5. Bd2 {[%clk 0:02:53]}  a5 {[%clk 0:03:01]} 6. Bg2 {[%clk 0:02:53]}  O-O {[%clk 0:03:01]} 7. Qc2 {[%clk 0:02:53]}  c5 {[%clk 0:03:01]} 8. Bxb4 {[%clk 0:02:50]}  axb4 {[%clk 0:02:55]} 9. cxd5 {[%clk 0:02:46]}  cxd4 {[%clk 0:02:55]} 10. Nxd4 {[%clk 0:02:39]}  Qb6 {[%clk 0:02:55]} 11. e3 {[%clk 0:02:25]}  exd5 {[%clk 0:02:53]} 12. Nd2 {[%clk 0:02:23]}  Nc6 {[%clk 0:02:45]} 13. N2b3 {[%clk 0:02:21]}  Bg4 {[%clk 0:02:34]} 14. O-O {[%clk 0:02:20]}  Rfc8 {[%clk 0:02:34]} 15. Qd3 {[%clk 0:01:57]}  Ne5 {[%clk 0:02:31]} 16. Qb1 {[%clk 0:01:50]}  Bh5 {[%clk 0:02:21]} 17. Qf5 {[%clk 0:01:43]}  Nc4 {[%clk 0:02:18]} 18. Bxd5 {[%clk 0:01:30]}  Nd6 {[%clk 0:02:07]} 19. Qe5 {[%clk 0:01:16]}  Re8 {[%clk 0:02:06]} 20. Bxf7+ {[%clk 0:00:58]}  Bxf7 {[%clk 0:01:58]} 21. Qc5 {[%clk 0:00:58]}  Qxc5 {[%clk 0:01:56]} 22. Nxc5 {[%clk 0:00:58]}  Nde4 {[%clk 0:01:47]} 23. Nxb7 {[%clk 0:00:58]}  Reb8 {[%clk 0:01:46]} 24. f3 {[%clk 0:00:54]}  Rxb7 {[%clk 0:01:43]} 25. fxe4 {[%clk 0:00:54]}  Nxe4 {[%clk 0:01:44]} 26. Rf4 {[%clk 0:00:51]}  Nf6 {[%clk 0:01:42]} 27. a4 {[%clk 0:00:42]}  Nd5 {[%clk 0:01:33]} 28. Rf3 {[%clk 0:00:38]}  Re7 {[%clk 0:01:26]} 29. Nf5 {[%clk 0:00:36]}  Re5 {[%clk 0:01:22]} 30. Nd6 {[%clk 0:00:32]}  Bh5 {[%clk 0:01:18]} 31. Rf2 {[%clk 0:00:28]}  Rd8 {[%clk 0:01:05]} 32. Nc4 {[%clk 0:00:25]}  Re4 {[%clk 0:01:04]} 33. b3 {[%clk 0:00:26]}  Nxe3 {[%clk 0:00:50]} 34. Re1 {[%clk 0:00:25]}  Rd1 {[%clk 0:00:50]} 35. Rxd1 {[%clk 0:00:21]}  Bxd1 {[%clk 0:00:47]} 36. Nd6 {[%clk 0:00:18]}  Re6 {[%clk 0:00:46]} 37. Rd2 {[%clk 0:00:17]}  Bxb3 {[%clk 0:00:43]} 38. a5 {[%clk 0:00:18]}  Nc4 {[%clk 0:00:39]} 39. Nxc4 {[%clk 0:00:11]}  Bxc4 {[%clk 0:00:40]} 40. Rd4 {[%clk 0:00:12]}  Rc6 {[%clk 0:00:41]} 41. Rd8+ {[%clk 0:00:12]}  Kf7 {[%clk 0:00:40]} 42. Rb8 {[%clk 0:00:11]}  b3 {[%clk 0:00:40]} 0-1


[Site "https://www.chess.com"]

[Event "Titled Tuesday Blitz May 16 Early 2023"]
[White "Fiorito, Joaquin"]
[Black "Santos Ruiz, Miguel"]
[WhiteFideId "180173"]
[BlackFideId "22291482"]
[WhiteElo "2157"]
[BlackElo "2499"]
[Result "0-1"]
[Round "06"]
[TimeControl "180+2"]
[Date "2023.05.16"]
[WhiteClock "0:00:01"]
[BlackClock "0:00:44"]

1. d4 {[%clk 0:03:00]}  Nf6 {[%clk 0:03:00]} 2. c4 {[%clk 0:03:00]}  e6 {[%clk 0:03:00]} 3. Nc3 {[%clk 0:03:00]}  Bb4 {[%clk 0:03:00]} 4. e3 {[%clk 0:03:00]}  d6 {[%clk 0:02:51]} 5. Bd3 {[%clk 0:02:51]}  Bxc3+ {[%clk 0:02:50]} 6. bxc3 {[%clk 0:02:51]}  e5 {[%clk 0:02:51]} 7. e4 {[%clk 0:02:43]}  c5 {[%clk 0:02:51]} 8. d5 {[%clk 0:02:38]}  Qe7 {[%clk 0:02:40]} 9. Ne2 {[%clk 0:02:37]}  h6 {[%clk 0:02:38]} 10. O-O {[%clk 0:02:37]}  g5 {[%clk 0:02:38]} 11. f3 {[%clk 0:02:32]}  Kd8 {[%clk 0:02:33]} 12. a4 {[%clk 0:02:19]}  a5 {[%clk 0:02:33]} 13. Be3 {[%clk 0:02:15]}  Kc7 {[%clk 0:02:31]} 14. Rb1 {[%clk 0:02:14]}  b6 {[%clk 0:02:24]} 15. Qc2 {[%clk 0:02:08]}  Nh5 {[%clk 0:02:23]} 16. Rb2 {[%clk 0:02:03]}  Nf4 {[%clk 0:02:14]} 17. Rfb1 {[%clk 0:02:01]}  Ra6 {[%clk 0:02:13]} 18. Ng3 {[%clk 0:01:50]}  h5 {[%clk 0:02:07]} 19. Nf5 {[%clk 0:01:43]}  Bxf5 {[%clk 0:02:04]} 20. exf5 {[%clk 0:01:44]}  Nd7 {[%clk 0:02:01]} 21. Be4 {[%clk 0:01:42]}  Nf6 {[%clk 0:01:54]} 22. Qb3 {[%clk 0:01:36]}  Qd7 {[%clk 0:01:45]} 23. Qd1 {[%clk 0:01:18]}  Rg8 {[%clk 0:01:36]} 24. Rb5 {[%clk 0:00:52]}  Qe7 {[%clk 0:01:20]} 25. R5b2 {[%clk 0:00:23]}  g4 {[%clk 0:01:17]} 26. Bxf4 {[%clk 0:00:17]}  exf4 {[%clk 0:01:17]} 27. Qd3 {[%clk 0:00:17]}  Nd7 {[%clk 0:01:16]} 28. Qd2 {[%clk 0:00:14]}  Ne5 {[%clk 0:01:07]} 29. Qxf4 {[%clk 0:00:05]}  gxf3 {[%clk 0:01:07]} 30. Bxf3 {[%clk 0:00:06]}  Qh4 {[%clk 0:01:07]} 31. Qxh4 {[%clk 0:00:06]}  Nxf3+ {[%clk 0:01:08]} 32. Kh1 {[%clk 0:00:03]}  Nxh4 {[%clk 0:01:08]} 33. Rf2 {[%clk 0:00:03]}  Rg4 {[%clk 0:00:52]} 34. g3 {[%clk 0:00:02]}  Rxc4 {[%clk 0:00:46]} 35. Rc1 {[%clk 0:00:01]}  Rxa4 {[%clk 0:00:45]} 36. gxh4 {[%clk 0:00:01]}  Re4 {[%clk 0:00:44]} 37. Re2 {[%clk 0:00:01]}  Rxe2 {[%clk 0:00:44]} 0-1


[Site "https://www.chess.com"]

[Event "Titled Tuesday Blitz May 16 Early 2023"]
[White "OPQRC"]
[Black "Csonka, Balazs"]
[BlackFideId "742910"]
[WhiteElo "2549"]
[BlackElo "2404"]
[Result "1-0"]
[Round "06"]
[TimeControl "180+2"]
[Date "2023.05.16"]
[WhiteClock "0:00:04"]
[BlackClock "0:00:00"]

1. e4 {[%clk 0:03:00]}  d5 {[%clk 0:03:00]} 2. exd5 {[%clk 0:03:00]}  Qxd5 {[%clk 0:03:01]} 3. Nc3 {[%clk 0:03:01]}  Qa5 {[%clk 0:03:01]} 4. Bc4 {[%clk 0:03:01]}  Nf6 {[%clk 0:03:01]} 5. d3 {[%clk 0:03:00]}  c6 {[%clk 0:02:53]} 6. Bd2 {[%clk 0:03:00]}  Qb6 {[%clk 0:02:52]} 7. Qe2 {[%clk 0:02:50]}  Qxb2 {[%clk 0:02:39]} 8. Rb1 {[%clk 0:02:49]}  Qa3 {[%clk 0:02:39]} 9. Nf3 {[%clk 0:02:47]}  e6 {[%clk 0:02:39]} 10. O-O {[%clk 0:02:38]}  Be7 {[%clk 0:02:40]} 11. Ne5 {[%clk 0:02:26]}  O-O {[%clk 0:02:39]} 12. g4 {[%clk 0:02:26]}  b5 {[%clk 0:02:20]} 13. Bxb5 {[%clk 0:02:07]}  cxb5 {[%clk 0:01:19]} 14. Nxb5 {[%clk 0:02:08]}  Qa4 {[%clk 0:01:19]} 15. Nc7 {[%clk 0:02:01]}  Nc6 {[%clk 0:01:08]} 16. Nxa8 {[%clk 0:01:47]}  Nxe5 {[%clk 0:00:45]} 17. Qxe5 {[%clk 0:01:48]}  Qc6 {[%clk 0:00:31]} 18. Qc7 {[%clk 0:01:22]}  Qxa8 {[%clk 0:00:18]} 19. Qxe7 {[%clk 0:01:22]}  Qf3 {[%clk 0:00:15]} 20. Rb4 {[%clk 0:01:03]}  Nd5 {[%clk 0:00:13]} 21. Qg5 {[%clk 0:00:02]}  Nxb4 {[%clk 0:00:08]} 22. Rb1 {[%clk 0:00:02]}  Bb7 {[%clk 0:00:08]} 23. Kf1 {[%clk 0:00:02]}  Nxc2 {[%clk 0:00:06]} 24. Rc1 {[%clk 0:00:01]}  Qh1+ {[%clk 0:00:06]} 25. Ke2 {[%clk 0:00:01]}  Nd4+ {[%clk 0:00:07]} 26. Ke3 {[%clk 0:00:02]}  Qf3+ {[%clk 0:00:03]} 27. Kxd4 {[%clk 0:00:02]}  Qxf2+ {[%clk 0:00:04]} 28. Be3 {[%clk 0:00:02]}  Qb2+ {[%clk 0:00:03]} 29. Kc5 {[%clk 0:00:01]}  Rc8+ {[%clk 0:00:03]} 30. Kd6 {[%clk 0:00:02]}  Qa3+ {[%clk 0:00:02]} 31. Ke5 {[%clk 0:00:02]}  Qa5+ {[%clk 0:00:02]} 32. Kf4 {[%clk 0:00:02]}  Qxg5+ {[%clk 0:00:01]} 33. Kxg5 {[%clk 0:00:03]}  Rxc1 {[%clk 0:00:02]} 34. Bxc1 {[%clk 0:00:04]}  f6+ {[%clk 0:00:02]} 35. Kf4 {[%clk 0:00:04]}  Kf7 {[%clk 0:00:03]} 36. Ke3 {[%clk 0:00:05]}  e5 {[%clk 0:00:03]} 37. h4 {[%clk 0:00:05]}  Ke6 {[%clk 0:00:04]} 38. d4 {[%clk 0:00:05]}  e4 {[%clk 0:00:03]} 39. Ba3 {[%clk 0:00:05]}  g6 {[%clk 0:00:03]} 40. Bc5 {[%clk 0:00:04]}  a6 {[%clk 0:00:03]} 41. Ba7 {[%clk 0:00:04]}  Kd5 {[%clk 0:00:01]} 42. Bb8 {[%clk 0:00:04]}  Bc8 {[%clk 0:00:02]} 43. g5 {[%clk 0:00:03]}  fxg5 {[%clk 0:00:02]} 44. hxg5 {[%clk 0:00:03]}  Bf5 {[%clk 0:00:02]} 45. a3 {[%clk 0:00:04]}  Kc4 {[%clk 0:00:02]} 46. Bf4 {[%clk 0:00:04]}  Kb3 {[%clk 0:00:02]} 47. Bd6 {[%clk 0:00:04]}  Kc4 {[%clk 0:00:02]} 48. Be7 {[%clk 0:00:05]}  Kd5 {[%clk 0:00:03]} 49. Bf8 {[%clk 0:00:05]}  Bd7 {[%clk 0:00:03]} 50. Be7 {[%clk 0:00:05]}  Bc6 {[%clk 0:00:03]} 51. Bd8 {[%clk 0:00:06]}  Ke6 {[%clk 0:00:04]} 52. Bc7 {[%clk 0:00:05]}  Kf5 {[%clk 0:00:05]} 53. Bd8 {[%clk 0:00:06]}  Kg4 {[%clk 0:00:04]} 54. Bf6 {[%clk 0:00:04]}  Kh5 {[%clk 0:00:03]} 55. Be7 {[%clk 0:00:04]}  h6 {[%clk 0:00:03]} 56. gxh6 {[%clk 0:00:05]}  Kxh6 {[%clk 0:00:04]} 57. Kf4 {[%clk 0:00:04]}  Kh5 {[%clk 0:00:00]} 58. Bf6 {[%clk 0:00:04]} 1-0


[Site "https://www.chess.com"]

[Event "Titled Tuesday Blitz May 16 Early 2023"]
[White "Prohaszka, Peter"]
[Black "Bagwe Gaurang"]
[WhiteFideId "726265"]
[BlackFideId "45039895"]
[WhiteElo "2626"]
[BlackElo "1847"]
[Result "1-0"]
[Round "06"]
[TimeControl "180+2"]
[Date "2023.05.16"]
[WhiteClock "0:01:13"]
[BlackClock "0:01:19"]

1. d4 {[%clk 0:03:00]}  d5 {[%clk 0:02:57]} 2. c3 {[%clk 0:03:01]}  e6 {[%clk 0:02:56]} 3. Nf3 {[%clk 0:03:01]}  Nf6 {[%clk 0:02:56]} 4. Bg5 {[%clk 0:03:01]}  Be7 {[%clk 0:02:56]} 5. Nbd2 {[%clk 0:03:02]}  O-O {[%clk 0:02:55]} 6. e3 {[%clk 0:03:02]}  Ne4 {[%clk 0:02:55]} 7. Bxe7 {[%clk 0:02:59]}  Qxe7 {[%clk 0:02:55]} 8. Nxe4 {[%clk 0:03:00]}  dxe4 {[%clk 0:02:55]} 9. Nd2 {[%clk 0:03:01]}  f5 {[%clk 0:02:55]} 10. Bc4 {[%clk 0:02:41]}  Kh8 {[%clk 0:02:41]} 11. O-O {[%clk 0:02:38]}  e5 {[%clk 0:02:41]} 12. f3 {[%clk 0:02:29]}  exd4 {[%clk 0:02:34]} 13. cxd4 {[%clk 0:02:29]}  exf3 {[%clk 0:02:32]} 14. Qxf3 {[%clk 0:02:30]}  Nc6 {[%clk 0:02:30]} 15. Rac1 {[%clk 0:02:12]}  Be6 {[%clk 0:02:13]} 16. Bxe6 {[%clk 0:02:05]}  Qxe6 {[%clk 0:02:12]} 17. d5 {[%clk 0:02:05]}  Qd7 {[%clk 0:02:12]} 18. dxc6 {[%clk 0:02:03]}  Qxd2 {[%clk 0:02:12]} 19. cxb7 {[%clk 0:02:03]}  Rae8 {[%clk 0:02:10]} 20. Rxc7 {[%clk 0:01:50]}  Qxb2 {[%clk 0:02:09]} 21. Qc6 {[%clk 0:01:34]}  Qe5 {[%clk 0:01:43]} 22. Qc3 {[%clk 0:01:24]}  Kg8 {[%clk 0:01:32]} 23. Qxe5 {[%clk 0:01:16]}  Rxe5 {[%clk 0:01:31]} 24. Rc8 {[%clk 0:01:12]}  Rb5 {[%clk 0:01:30]} 25. Rxf8+ {[%clk 0:01:12]}  Kxf8 {[%clk 0:01:19]} 26. Rxf5+ {[%clk 0:01:13]} 1-0


[Site "https://www.chess.com"]